[Event "Mitropa Cup Women 2024"]
[Site "Apolda"]
[Date "2024.02.21"]
[Round "7.10"]
[White "Sankova, Stella"]
[Black "Zimina, Olga"]
[Result "0-1"]
[ECO "B13"]
[WhiteElo "2124"]
[BlackElo "2291"]
[Annotator "TA"]
[PlyCount "60"]
[EventDate "2024.02.15"]
[EventType "team-tourn"]
[EventCountry "GER"]
[SourceTitle "playchess.com"]
[Source "ChessBase"]
[SourceQuality "1"]
[WhiteTeam "Slovakia"]
[BlackTeam "Italy"]
[WhiteTeamCountry "SVK"]
[BlackTeamCountry "ITA"]
[TimeControl "40/5400+30:1800+30"]

{[%evp 11,60,23,17,12,13,9,22,14,23,5,17,4,28,-7,-13,-14,0,0,0,0,0,-3,-6,-25,8,20,33,0,50,55,50,-8,-10,0,0,-130,-129,-649,-52,-641,-598,-645,-632,-29986,-29987,-29987,-29988,-29988,-29989,-29989,-29990]} 1. e4 {[%emt 0:00:03]} c6 {[%emt 0:00:12]} 2. d4 {[%emt 0:00:04]} d5 {[%emt 0:00:03]} 3. exd5 {[%emt 0:00:03]} cxd5 {[%emt 0:00:05]} 4. Bd3 {[%emt 0:00:14]} Nf6 {[%emt 0:00:05]} 5. c3 {[%emt 0:00:23]} Bg4 {[%emt 0:00:06]} 6. Qb3 {[%emt 0:00:48]} Qc7 {[%emt 0:00:10]} 7. Ne2 {[%emt 0:01:07]} Bxe2 {[%emt 0:00:22]} 8. Bxe2 {[%emt 0:00:23][%cal Oc1f4]} Nc6 {[%emt 0:00:08][%cal Oc6d4]} 9. O-O {[%emt 0:00:10][%cal Oc1f4] The position is equal.} e6 {[%emt 0:00:04]} 10. Nd2 {[%emt 0:02:50]} (10. Bf4 $5 Qd7 (10... Qxf4 11. Qxb7 Rb8 12. Qxc6+ Kd8 13. g3 $16) 11. Nd2 $14) 10... Bd6 {[%emt 0:03:42]} 11. Nf3 {[%emt 0:00:08]} h6 {[%emt 0:00:41]} 12. h3 {[%emt 0:05:57]} O-O {[%emt 0:01:00]} 13. Be3 $1 {[%emt 0:01:27]} Rab8 {[%emt 0:00:16]} 14. a4 {[%emt 0:00:15]} Na5 {[%emt 0:01:18]} 15. Qd1 {[%emt 0:08:08]} a6 {[%emt 0:00:22]} 16. Nd2 {[%emt 0:03:23]} b5 {[%emt 0:02:40]} 17. b4 {[%emt 0:03:22]} Nc6 {[%emt 0:14:36]} 18. Nb3 {[%emt 0:03:41]} Ne4 {[%emt 0:00:18]} 19. Qd3 {[%emt 0:03:54]} f5 {[%emt 0:01:12]} (19... bxa4 $11 20. Nc5 Bxc5 21. dxc5 Rfd8) 20. Bd2 {[%emt 0:08:51]} (20. f4 {simplifies} Rfd8 21. axb5 axb5 22. Nc5) 20... Kh8 {[%emt 0:12:13]} 21. Rfb1 {[%emt 0:10:25]} (21. Be1 $14) 21... Bh2+ {[%emt 0:03:02]} 22. Kf1 {[%emt 0:00:49]} e5 {[%emt 0:04:12][%cal Oe4f2] Threatens to win with ...Nxf2!} 23. Be1 {[%emt 0:02:29]} (23. Nc5 $1 $11 {keeps the balance.} Nxf2 24. Kxf2) 23... f4 $17 {[%emt 0:17:28][%cal Oe4g3] White must now prevent ...Ng3+! Black is much more active.} 24. dxe5 $2 {[%emt 0:08:07][%mdl 8192]} (24. Bg4 $17) 24... Rbd8 $2 {[%emt 0:29:37]} ({Black should play} 24... Ng3+ $19 25. fxg3 fxg3+ (25... Nxe5 $2 26. Qxd5 fxg3+ 27. Bf3 $19) 26. Bf3 Nxe5 27. Qxd5 Rbd8) 25. Nd4 $2 {[%emt 0:05:01][%mdl 8192]} (25. f3 $15) 25... Nxe5 $19 {[%emt 0:00:25] A dynamic duo of knights.} 26. Qc2 {[%emt 0:00:26]} Nc4 {[%emt 0:01:07][%cal Oe4g3] aiming for ...Ng3+!} 27. Bxc4 {[%emt 0:04:37]} Qxc4+ {[%emt 0:00:11] Black mates.} ({Inferior is} 27... bxc4 28. Nf3 $14) 28. Qe2 {[%emt 0:00:07] [#]} Ng3+ $1 {[%emt 0:00:17][%mdl 512]} 29. fxg3 {[%emt 0:00:07]} fxg3+ {[%emt 0:00:02]} 30. Nf3 {[%emt 0:00:22] [#]} Rxf3+ $1 {[%emt 0:00:05][%mdl 512] Weighted Error Value: White=0.83/Black=0.29 (precise) .  Loses game:     	White=2     	---        Missed win:     	---       	Black=1      Mistake:       	White=2     	Black=1      Inaccurate:     	White=2     	Black=1      OK:         	White=6     	Black=7      Best:        	White=1     	Black=1      Strong:       	White=1     	---} 0-1

[Event "Mitropa Cup Women 2024"]
[Site "Apolda"]
[Date "2024.02.21"]
[Round "7.11"]
[White "Gueci, Tea"]
[Black "Sevcikova, Lucia"]
[Result "1/2-1/2"]
[ECO "C02"]
[WhiteElo "2193"]
[BlackElo "2007"]
[Annotator "RC"]
[PlyCount "121"]
[EventDate "2024.02.15"]
[EventType "team-tourn"]
[EventCountry "GER"]
[SourceTitle "playchess.com"]
[Source "ChessBase"]
[SourceQuality "1"]
[WhiteTeam "Italy"]
[BlackTeam "Slovakia"]
[WhiteTeamCountry "ITA"]
[BlackTeamCountry "SVK"]
[TimeControl "40/5400+30:1800+30"]

1. e4 {[%emt 0:00:01]} e6 {[%emt 0:00:03]} 2. d4 {[%emt 0:00:03]} d5 {[%emt 0:00:03]} 3. e5 {[%emt 0:00:03]} c5 {[%emt 0:00:14]} 4. c3 {[%emt 0:00:03]} Bd7 {[%emt 0:00:32]} 5. Nf3 {[%emt 0:00:09]} Nc6 {[%emt 0:00:12]} 6. Be2 {[%emt 0:00:19]} Nge7 {[%emt 0:05:08]} 7. O-O {[%emt 0:00:06]} Nf5 {[%emt 0:01:41]} 8. g4 {[%emt 0:10:44]} Nh4 {[%emt 0:06:14]} 9. Nxh4 {[%emt 0:00:24]} Qxh4 {[%emt 0:00:06]} 10. f4 {[%emt 0:02:08]} h5 {[%emt 0:14:16]} 11. g5 {[%emt 0:06:41]} f6 {[%emt 0:00:46]} 12. Be3 {[%emt 0:10:04]} fxg5 {[%emt 0:07:33]} 13. fxg5 {[%emt 0:01:10]} Be7 {[%emt 0:03:34]} 14. Qd2 {[%emt 0:03:21]} O-O-O {[%emt 0:03:11]} 15. Na3 {[%emt 0:01:56]} Be8 {[%emt 0:05:15]} 16. Nb5 {[%emt 0:11:04]} Bg6 {[%emt 0:04:37]} 17. Bf4 {[%emt 0:01:33]} Rhf8 {[%emt 0:05:41]} 18. Nd6+ {[%emt 0:02:19]} Kb8 {[%emt 0:03:19]} 19. Rad1 {[%emt 0:11:44]} Bf5 {[%emt 0:07:36]} 20. Qe3 {[%emt 0:22:38]} Bh3 {[%emt 0:05:06]} 21. Rf2 {[%emt 0:00:23]} Bg4 {[%emt 0:09:03]} 22. Qg3 {[%emt 0:01:07]} Qxg3+ {[%emt 0:04:23]} 23. hxg3 {[%emt 0:00:04]} Bxe2 {[%emt 0:00:18]} 24. Rxe2 {[%emt 0:00:04]} cxd4 {[%emt 0:01:19]} 25. cxd4 {[%emt 0:00:05]} g6 {[%emt 0:01:58]} 26. Rf2 {[%emt 0:01:19]} Rd7 {[%emt 0:01:18]} 27. Rdd2 {[%emt 0:00:26]} a6 {[%emt 0:02:15]} 28. Be3 {[%emt 0:01:23]} Nd8 {[%emt 0:03:13]} 29. Rxf8 {[%emt 0:02:14]} Bxf8 {[%emt 0:00:04]} 30. Ne8 {[%emt 0:01:20]} Re7 {[%emt 0:01:20]} 31. Nf6 {[%emt 0:00:35]} Rc7 {[%emt 0:00:18]} 32. Rh2 {[%emt 0:01:24]} Bg7 {[%emt 0:02:42]} 33. Rf2 {[%emt 0:06:36]} Rf7 {[%emt 0:01:03]} 34. Rf4 {[%emt 0:00:41]} Ka7 {[%emt 0:01:08]} 35. Bd2 {[%emt 0:00:30]} Bf8 {[%emt 0:00:23]} 36. Kf1 {[%emt 0:01:24]} Be7 {[%emt 0:00:47]} 37. Ke2 {[%emt 0:00:31]} Rf8 {[%emt 0:00:18]} 38. Ba5 {[%emt 0:01:41]} Rh8 {[%emt 0:01:55]} 39. Bc7 {[%emt 0:01:01]} Nc6 {[%emt 0:00:17]} 40. a3 {[%emt 0:00:31]} b5 {[%emt 0:00:40]} 41. Bd6 {[%emt 0:09:40]} Bxd6 {[%emt 0:16:11]} 42. exd6 {[%emt 0:00:05]} Rd8 {[%emt 0:00:09]} 43. d7 {[%emt 0:04:02]} Kb7 {[%emt 0:02:21]} 44. Kd3 {[%emt 0:06:33]} Kc7 {[%emt 0:02:15]} 45. Nh7 {[%emt 0:00:57]} e5 {[%emt 0:01:55]} 46. dxe5 {[%emt 0:00:55]} Nxe5+ {[%emt 0:00:23]} 47. Kd4 {[%emt 0:00:55]} Nxd7 {[%emt 0:01:56]} 48. Rf7 {[%emt 0:01:35]} Kd6 {[%emt 0:01:40]} 49. Nf6 {[%emt 0:00:36]} Ne5 {[%emt 0:00:21]} 50. Rg7 {[%emt 0:02:34]} Rc8 {[%emt 0:01:03]} 51. b3 {[%emt 0:00:31]} Ke6 {[%emt 0:00:36]} 52. Nxd5 {[%emt 0:02:08]} Nf3+ {[%emt 0:02:18]} 53. Ke3 {[%emt 0:00:59]} Kxd5 {[%emt 0:01:11]} 54. Kxf3 {[%emt 0:00:04]} Rc6 {[%emt 0:03:40]} 55. Kf4 {[%emt 0:00:04]} Kd4 {[%emt 0:00:51]} 56. Rf7 {[%emt 0:01:24]} Re6 {[%emt 0:00:51]} 57. Rf6 {[%emt 0:01:39]} Re4+ {[%emt 0:00:05]} 58. Kf3 {[%emt 0:00:05]} Re3+ {[%emt 0:00:02]} 59. Kf4 {[%emt 0:02:05]} Re4+ {[%emt 0:00:03]} 60. Kf3 {[%emt 0:00:10]} Re3+ {[%emt 0:00:04]} 61. Kf4 {[%emt 0:04:10]} 1/2-1/2

[Event "Mitropa Cup Women 2024"]
[Site "Apolda"]
[Date "2024.02.21"]
[Round "7.12"]
[White "Sekova, Olivia"]
[Black "Sala, Giulia"]
[Result "1-0"]
[ECO "B29"]
[WhiteElo "2054"]
[BlackElo "2035"]
[Annotator "NA RC"]
[PlyCount "71"]
[EventDate "2024.02.15"]
[EventType "team-tourn"]
[EventCountry "GER"]
[SourceTitle "playchess.com"]
[Source "ChessBase"]
[SourceQuality "1"]
[WhiteTeam "Slovakia"]
[BlackTeam "Italy"]
[WhiteTeamCountry "SVK"]
[BlackTeamCountry "ITA"]
[TimeControl "40/5400+30:1800+30"]

1. e4 {[%emt 0:00:04]} c5 {[%emt 0:00:06]} 2. Nf3 {[%emt 0:00:06]} Nf6 {[%emt 0:00:05]} 3. e5 {[%emt 0:00:06]} Nd5 {[%emt 0:00:07]} 4. Nc3 {[%emt 0:00:05]} e6 {[%emt 0:00:12]} 5. Ne4 {[%emt 0:00:06]} f5 {[%emt 0:00:09]} 6. Nc3 {[%emt 0:00:05]} Nxc3 {[%emt 0:01:13]} 7. dxc3 {[%emt 0:02:31]} Nc6 {[%emt 0:03:43]} 8. Bf4 {[%emt 0:04:04]} Be7 {[%emt 0:02:07]} 9. h4 {[%emt 0:01:30]} O-O {[%emt 0:03:26]} 10. Ng5 {[%emt 0:07:57]} Qe8 {[%emt 0:05:32]} 11. Be2 {[%emt 0:02:25]} d6 {[%emt 0:14:39]} 12. exd6 {[%emt 0:04:44]} Bf6 {[%emt 0:03:42]} 13. Be3 {[%emt 0:06:04]} b6 {[%emt 0:01:51]} 14. Qd2 {[%emt 0:03:40]} Bxg5 {[%emt 0:23:41]} 15. Bxg5 {[%emt 0:02:47]} h6 {[%emt 0:02:09]} 16. Be3 {[%emt 0:10:17]} e5 {[%emt 0:02:12]} 17. O-O-O {[%emt 0:12:27]} Bd7 {[%emt 0:04:19]} 18. f3 {[%emt 0:04:44]} Na5 {[%emt 0:02:43]} 19. g4 {[%emt 0:01:33]} Qf7 {[%emt 0:02:29]} 20. b3 {[%emt 0:03:11]} f4 {[%emt 0:01:18]} 21. Bf2 {[%emt 0:00:09]} Be6 {[%emt 0:04:40]} 22. h5 {[%emt 0:01:29]} c4 {[%emt 0:00:43]} 23. b4 {[%emt 0:01:07]} Nb7 {[%emt 0:00:44]} 24. Bh4 {[%emt 0:02:15]} Qd7 {[%emt 0:01:27]} 25. g5 {[%emt 0:01:02]} Kh7 {[%emt 0:03:18]} 26. gxh6 {[%emt 0:01:35]} gxh6 {[%emt 0:00:01]} 27. Rhg1 {[%emt 0:00:32]} Rg8 {[%emt 0:00:31]} 28. Bf6 {[%emt 0:00:07]} a5 {[%emt 0:04:04]} 29. Bxe5 {[%emt 0:04:20]} axb4 {[%emt 0:01:27]} 30. Qxf4 {[%emt 0:01:05]} Rgf8 {[%emt 0:05:55]} 31. Qd4 {[%emt 0:01:36]} Rf7 {[%emt 0:01:08]} 32. Rg6 {[%emt 0:00:33]} Rxa2 {[%emt 0:03:19]} 33. Qe3 {[%emt 0:00:12]} Rxc2+ {[%emt 0:01:45]} 34. Kb1 {[%emt 0:00:11]} Rb2+ {[%emt 0:01:32]} 35. Kxb2 {[%emt 0:00:05]} bxc3+ {[%emt 0:00:05]} 36. Kc1 {[%emt 0:00:15]} 1-0

[Event "Mitropa Cup Women 2024"]
[Site "Apolda"]
[Date "2024.02.21"]
[Round "7.13"]
[White "Polterauer, Chiara"]
[Black "Georgescu, Lena"]
[Result "1/2-1/2"]
[ECO "C54"]
[WhiteElo "2189"]
[BlackElo "2268"]
[Annotator "TA"]
[PlyCount "27"]
[EventDate "2024.02.15"]
[EventType "team-tourn"]
[EventCountry "GER"]
[SourceTitle "playchess.com"]
[Source "ChessBase"]
[SourceQuality "1"]
[WhiteTeam "Austria"]
[BlackTeam "Switzerland"]
[WhiteTeamCountry "AUT"]
[BlackTeamCountry "SUI"]
[TimeControl "40/5400+30:1800+30"]

{[%evp 17,27,-7,1,0,0,0,16,0,0,0,8,0]} 1. e4 {[%emt 0:00:04]} e5 {[%emt 0:00:03]} 2. Nf3 {[%emt 0:00:05]} Nc6 {[%emt 0:00:03]} 3. Bc4 {[%emt 0:00:07]} Bc5 {[%emt 0:00:04]} 4. c3 {[%emt 0:00:14]} Nf6 {[%emt 0:00:04]} 5. d4 {[%emt 0:00:12]} exd4 {[%emt 0:00:05]} 6. e5 {[%emt 0:00:11]} d5 {[%emt 0:00:07]} 7. Bb5 {[%emt 0:00:12]} Ne4 {[%emt 0:00:05]} 8. cxd4 {[%emt 0:00:16]} Bb6 {[%emt 0:00:04]} 9. Nc3 {[%emt 0:01:07]} O-O {[%emt 0:00:21] The position is equal.} 10. Be3 {[%emt 0:00:20]} Bg4 {[%emt 0:00:08]} 11. Qc2 {[%emt 0:01:00]} Bf5 {[%emt 0:01:08]} 12. Qd1 {[%emt 0:01:01]} Bg4 {[%emt 0:01:09]} 13. Qc2 {[%emt 0:01:52]} Bf5 {[%emt 0:00:04] [#] aiming for ...Nxc3.} 14. Qd1 {[%emt 0:02:54] Not much happened in this game.   Weighted Error Value: White=0.04 (flawless) /Black=0.07 (flawless) .  OK:         	White=1     	Black=1} 1/2-1/2

[Event "Mitropa Cup Women 2024"]
[Site "Apolda"]
[Date "2024.02.21"]
[Round "7.14"]
[White "Hryzlova, Sofiia"]
[Black "Hapala, Elisabeth"]
[Result "1-0"]
[ECO "E16"]
[WhiteElo "2196"]
[BlackElo "2001"]
[Annotator "RC"]
[PlyCount "59"]
[EventDate "2024.02.15"]
[EventType "team-tourn"]
[EventCountry "GER"]
[SourceTitle "playchess.com"]
[Source "ChessBase"]
[SourceQuality "1"]
[WhiteTeam "Switzerland"]
[BlackTeam "Austria"]
[WhiteTeamCountry "SUI"]
[BlackTeamCountry "AUT"]
[TimeControl "40/5400+30:1800+30"]

1. d4 {[%emt 0:00:03]} Nf6 {[%emt 0:00:05]} 2. c4 {[%emt 0:00:07]} e6 {[%emt 0:00:03]} 3. Nf3 {[%emt 0:00:11]} Bb4+ {[%emt 0:00:45]} 4. Bd2 {[%emt 0:00:12]} a5 {[%emt 0:00:05]} 5. g3 {[%emt 0:01:02]} b6 {[%emt 0:00:09]} 6. Bg2 {[%emt 0:00:09]} Bb7 {[%emt 0:00:04]} 7. O-O {[%emt 0:00:12]} O-O {[%emt 0:00:06]} 8. a3 {[%emt 0:00:09]} Bxd2 {[%emt 0:00:53]} 9. Qxd2 {[%emt 0:00:08]} d6 {[%emt 0:03:43]} 10. Qd3 {[%emt 0:00:13]} Nbd7 {[%emt 0:04:31]} 11. Nc3 {[%emt 0:00:25]} Re8 {[%emt 0:03:39]} 12. e4 {[%emt 0:00:14]} e5 {[%emt 0:00:29]} 13. Rfe1 {[%emt 0:00:39]} a4 {[%emt 0:03:32]} 14. Rad1 {[%emt 0:00:28]} exd4 {[%emt 0:08:50]} 15. Nxd4 {[%emt 0:00:13]} Nc5 {[%emt 0:00:10]} 16. Qc2 {[%emt 0:00:09]} Ra5 {[%emt 0:08:26]} 17. Nd5 {[%emt 0:09:02]} Nxd5 {[%emt 0:08:00]} 18. cxd5 {[%emt 0:00:27]} Qf6 {[%emt 0:03:27]} 19. f4 {[%emt 0:11:18]} Raa8 {[%emt 0:03:47]} 20. h3 {[%emt 0:06:58]} Bc8 {[%emt 0:11:26]} 21. Nb5 {[%emt 0:06:53]} Qd8 {[%emt 0:16:24]} 22. Kh2 {[%emt 0:03:48]} Bd7 {[%emt 0:00:20]} 23. Nd4 {[%emt 0:00:35]} Qf6 {[%emt 0:04:12]} 24. Qc3 {[%emt 0:09:59]} Re7 {[%emt 0:02:38]} 25. Re3 {[%emt 0:14:11]} Rae8 {[%emt 0:00:17]} 26. Rde1 {[%emt 0:00:08]} Kf8 {[%emt 0:02:01]} 27. e5 {[%emt 0:03:20]} dxe5 {[%emt 0:05:38]} 28. fxe5 {[%emt 0:00:08]} Rxe5 {[%emt 0:10:50]} 29. Rxe5 {[%emt 0:00:20]} Rxe5 {[%emt 0:00:00]} 30. Rxe5 {[%emt 0:00:12]} 1-0

[Event "Mitropa Cup Women 2024"]
[Site "Apolda"]
[Date "2024.02.21"]
[Round "7.15"]
[White "Mayrhuber, Nikola"]
[Black "Manko, Mariia"]
[Result "0-1"]
[ECO "D30"]
[WhiteElo "2009"]
[BlackElo "2128"]
[Annotator "RC"]
[PlyCount "100"]
[EventDate "2024.02.15"]
[EventType "team-tourn"]
[EventCountry "GER"]
[SourceTitle "playchess.com"]
[Source "ChessBase"]
[SourceQuality "1"]
[WhiteTeam "Austria"]
[BlackTeam "Switzerland"]
[WhiteTeamCountry "AUT"]
[BlackTeamCountry "SUI"]
[TimeControl "40/5400+30:1800+30"]

1. d4 {[%emt 0:00:02]} Nf6 {[%emt 0:00:07]} 2. c4 {[%emt 0:00:03]} e6 {[%emt 0:00:10]} 3. Nf3 {[%emt 0:02:05]} d5 {[%emt 0:00:10]} 4. e3 {[%emt 0:00:23]} c5 {[%emt 0:05:23]} 5. cxd5 {[%emt 0:00:19]} Nxd5 {[%emt 0:06:02]} 6. e4 {[%emt 0:00:17]} Nf6 {[%emt 0:03:03]} 7. Nc3 {[%emt 0:00:39]} cxd4 {[%emt 0:04:18]} 8. Nxd4 {[%emt 0:00:06]} Bc5 {[%emt 0:00:58]} 9. Be3 {[%emt 0:00:45]} O-O {[%emt 0:05:28]} 10. Be2 {[%emt 0:21:34]} e5 {[%emt 0:14:12]} 11. Nc2 {[%emt 0:03:30]} Bxe3 {[%emt 0:01:29]} 12. Nxe3 {[%emt 0:00:07]} Nc6 {[%emt 0:00:54]} 13. Qxd8 {[%emt 0:07:07]} Rxd8 {[%emt 0:00:19]} 14. Rd1 {[%emt 0:01:11]} Be6 {[%emt 0:04:31]} 15. O-O {[%emt 0:00:45]} Nd4 {[%emt 0:02:29]} 16. Bc4 {[%emt 0:00:38]} b5 {[%emt 0:10:40]} 17. Bxb5 {[%emt 0:08:17]} Nxe4 {[%emt 0:04:14]} 18. Nxe4 {[%emt 0:03:31]} Nxb5 {[%emt 0:00:07]} 19. b3 {[%emt 0:04:03]} f6 {[%emt 0:12:54]} 20. Nc5 {[%emt 0:06:16]} Bf7 {[%emt 0:00:43]} 21. Nb7 {[%emt 0:07:00]} Rxd1 {[%emt 0:04:07]} 22. Rxd1 {[%emt 0:00:02]} Nc3 {[%emt 0:00:54]} 23. Rd2 {[%emt 0:03:52]} Bg6 {[%emt 0:04:12]} 24. Nd5 {[%emt 0:09:46]} Nxd5 {[%emt 0:03:05]} 25. Rxd5 {[%emt 0:00:02]} Rc8 {[%emt 0:01:10]} 26. Rd8+ {[%emt 0:09:25]} Rxd8 {[%emt 0:00:06]} 27. Nxd8 {[%emt 0:00:02]} Be4 {[%emt 0:03:49]} 28. Ne6 {[%emt 0:00:14]} Kf7 {[%emt 0:00:16]} 29. Nc5 {[%emt 0:00:52]} Bb1 {[%emt 0:00:16]} 30. a3 {[%emt 0:03:13]} Ke7 {[%emt 0:00:19]} 31. f3 {[%emt 0:00:38]} f5 {[%emt 0:00:30]} 32. b4 {[%emt 0:00:39]} Kd6 {[%emt 0:02:10]} 33. Kf2 {[%emt 0:00:42]} Kd5 {[%emt 0:00:29]} 34. g3 {[%emt 0:02:27]} Kd4 {[%emt 0:03:12]} 35. Ne6+ {[%emt 0:02:20]} Kc3 {[%emt 0:00:06]} 36. Nxg7 {[%emt 0:03:48]} Kb3 {[%emt 0:00:25]} 37. g4 {[%emt 0:01:18]} fxg4 {[%emt 0:01:06]} 38. fxg4 {[%emt 0:00:03]} Kxa3 {[%emt 0:00:11]} 39. b5 {[%emt 0:01:18]} Kb4 {[%emt 0:00:15]} 40. Nf5 {[%emt 0:00:34]} Kxb5 {[%emt 0:00:30]} 41. Nd6+ {[%emt 0:02:56]} Kc5 {[%emt 0:11:34]} 42. Nb7+ {[%emt 0:08:37]} Kb4 {[%emt 0:05:22]} 43. Ke3 {[%emt 0:02:23]} a5 {[%emt 0:01:13]} 44. Kd2 {[%emt 0:00:31]} a4 {[%emt 0:01:05]} 45. Kc1 {[%emt 0:01:18]} e4 {[%emt 0:03:38]} 46. Nd8 {[%emt 0:02:36]} e3 {[%emt 0:03:07]} 47. Ne6 {[%emt 0:06:19]} e2 {[%emt 0:01:33]} 48. Kd2 {[%emt 0:00:03]} a3 {[%emt 0:00:16]} 49. Nf4 {[%emt 0:02:46]} a2 {[%emt 0:00:18]} 50. Nd5+ {[%emt 0:00:02]} Kc5 {[%emt 0:00:33]} 0-1

[Event "Mitropa Cup Women 2024"]
[Site "Apolda"]
[Date "2024.02.21"]
[Round "7.16"]
[White "Pellicoro, Nathalie"]
[Black "Deak-Sala, Emilia"]
[Result "1/2-1/2"]
[ECO "B50"]
[WhiteElo "1905"]
[BlackElo "1843"]
[Annotator "NA RC"]
[PlyCount "67"]
[EventDate "2024.02.15"]
[EventType "team-tourn"]
[EventCountry "GER"]
[SourceTitle "playchess.com"]
[Source "ChessBase"]
[SourceQuality "1"]
[WhiteTeam "Switzerland"]
[BlackTeam "Austria"]
[WhiteTeamCountry "SUI"]
[BlackTeamCountry "AUT"]
[TimeControl "40/5400+30:1800+30"]

1. e4 {[%emt 0:00:03]} c5 {[%emt 0:00:02]} 2. Nf3 {[%emt 0:00:17]} d6 {[%emt 0:00:03]} 3. c3 {[%emt 0:00:09]} Nf6 {[%emt 0:04:27]} 4. h3 {[%emt 0:00:19]} Nbd7 {[%emt 0:02:31]} 5. Bd3 {[%emt 0:00:16]} g6 {[%emt 0:01:18]} 6. Bc2 {[%emt 0:02:24]} Bg7 {[%emt 0:05:26]} 7. O-O {[%emt 0:01:47]} O-O {[%emt 0:00:49]} 8. d4 {[%emt 0:09:28]} cxd4 {[%emt 0:06:51]} 9. cxd4 {[%emt 0:01:59]} e5 {[%emt 0:08:08]} 10. Nc3 {[%emt 0:07:51]} Re8 {[%emt 0:08:33]} 11. Re1 {[%emt 0:03:19]} a6 {[%emt 0:04:06]} 12. a4 {[%emt 0:03:54]} exd4 {[%emt 0:06:26]} 13. Nxd4 {[%emt 0:00:31]} d5 {[%emt 0:00:28]} 14. exd5 {[%emt 0:12:47]} Rxe1+ {[%emt 0:00:31]} 15. Qxe1 {[%emt 0:00:09]} Nb6 {[%emt 0:01:55]} 16. Bb3 {[%emt 0:05:13]} Nfxd5 {[%emt 0:01:54]} 17. Nxd5 {[%emt 0:09:49]} Nxd5 {[%emt 0:00:42]} 18. Bxd5 {[%emt 0:13:22]} Qxd5 {[%emt 0:02:03]} 19. Qe8+ {[%emt 0:01:51]} Bf8 {[%emt 0:01:01]} 20. Nf5 {[%emt 0:02:28]} Qd1+ {[%emt 0:05:51]} 21. Kh2 {[%emt 0:00:08]} gxf5 {[%emt 0:00:13]} 22. Qxf8+ {[%emt 0:00:56]} Kxf8 {[%emt 0:00:07]} 23. Bh6+ {[%emt 0:00:06]} Ke8 {[%emt 0:00:28]} 24. Rxd1 {[%emt 0:00:05]} f6 {[%emt 0:06:24]} 25. Rd6 {[%emt 0:05:04]} Ke7 {[%emt 0:00:59]} 26. Rb6 {[%emt 0:00:57]} Kf7 {[%emt 0:02:25]} 27. Be3 {[%emt 0:01:29]} a5 {[%emt 0:02:38]} 28. Kg3 {[%emt 0:02:06]} Kg6 {[%emt 0:03:43]} 29. Bd4 {[%emt 0:01:33]} Ra6 {[%emt 0:00:04]} 30. Kf4 {[%emt 0:01:41]} Rxb6 {[%emt 0:00:33]} 31. Bxb6 {[%emt 0:00:06]} Bd7 {[%emt 0:00:03]} 32. h4 {[%emt 0:00:59]} h5 {[%emt 0:00:21]} 33. Bxa5 {[%emt 0:00:45]} Bxa4 {[%emt 0:00:07]} 34. Bc3 {[%emt 0:01:18]} 1/2-1/2